[Event "Titled Tuesday Blitz June 6 Early 2023"]
[White "Jovic, Stanoje"]
[Black "Tahbaz, Arash"]
[WhiteFideId "905020"]
[BlackFideId "12528846"]
[WhiteElo "2236"]
[BlackElo "2403"]
[Result "1-0"]
[Round "1"]
[TimeControl "180+2"]
[Date "2023.06.06"]
[WhiteClock "0:00:10"]
[BlackClock "0:00:05"]
[Board "57"]

1. c4 {[%clk 0:03:00]}  c5 {[%clk 0:02:50]} 2. g3 {[%clk 0:03:00]}  Nc6 {[%clk 0:01:07]} 3. Bg2 {[%clk 0:03:00]}  g6 {[%clk 0:01:08]} 4. Nc3 {[%clk 0:03:00]}  Bg7 {[%clk 0:01:09]} 5. Nf3 {[%clk 0:03:00]}  e6 {[%clk 0:01:09]} 6. O-O {[%clk 0:03:00]}  Nge7 {[%clk 0:01:10]} 7. d4 {[%clk 0:02:51]}  cxd4 {[%clk 0:01:09]} 8. Nb5 {[%clk 0:02:49]}  d5 {[%clk 0:01:06]} 9. cxd5 {[%clk 0:02:46]}  Nxd5 {[%clk 0:01:05]} 10. Nbxd4 {[%clk 0:02:44]}  Nxd4 {[%clk 0:01:05]} 11. Nxd4 {[%clk 0:02:44]}  O-O {[%clk 0:01:06]} 12. e4 {[%clk 0:02:44]}  Nb6 {[%clk 0:01:01]} 13. Nb3 {[%clk 0:02:39]}  Bd7 {[%clk 0:01:00]} 14. Qe2 {[%clk 0:02:36]}  Qc7 {[%clk 0:00:48]} 15. Bf4 {[%clk 0:02:22]}  Qc4 {[%clk 0:00:47]} 16. Qd2 {[%clk 0:02:16]}  Bb5 {[%clk 0:00:36]} 17. Rfc1 {[%clk 0:02:13]}  Qe2 {[%clk 0:00:35]} 18. Qxe2 {[%clk 0:02:09]}  Bxe2 {[%clk 0:00:36]} 19. e5 {[%clk 0:02:00]}  Nd5 {[%clk 0:00:33]} 20. Nd4 {[%clk 0:01:53]}  Ba6 {[%clk 0:00:33]} 21. Bxd5 {[%clk 0:01:45]}  exd5 {[%clk 0:00:33]} 22. Rc7 {[%clk 0:01:45]}  Rac8 {[%clk 0:00:33]} 23. Rac1 {[%clk 0:01:44]}  Rxc7 {[%clk 0:00:34]} 24. Rxc7 {[%clk 0:01:44]}  Re8 {[%clk 0:00:35]} 25. b4 {[%clk 0:01:35]}  Bc4 {[%clk 0:00:30]} 26. Rxb7 {[%clk 0:01:27]}  Bxe5 {[%clk 0:00:30]} 27. Bxe5 {[%clk 0:01:19]}  Rxe5 {[%clk 0:00:31]} 28. Rxa7 {[%clk 0:01:14]}  Re4 {[%clk 0:00:31]} 29. Nc6 {[%clk 0:01:07]}  d4 {[%clk 0:00:29]} 30. Rd7 {[%clk 0:00:53]}  Bb5 {[%clk 0:00:21]} 31. Rd8+ {[%clk 0:00:51]}  Kg7 {[%clk 0:00:21]} 32. Nxd4 {[%clk 0:00:51]}  Ba6 {[%clk 0:00:14]} 33. a4 {[%clk 0:00:42]}  Bb7 {[%clk 0:00:13]} 34. f3 {[%clk 0:00:42]}  Re3 {[%clk 0:00:13]} 35. a5 {[%clk 0:00:41]}  Ra3 {[%clk 0:00:12]} 36. Kf2 {[%clk 0:00:37]}  Kf6 {[%clk 0:00:09]} 37. Rd7 {[%clk 0:00:36]}  Ba6 {[%clk 0:00:09]} 38. Rd6+ {[%clk 0:00:36]}  Ke5 {[%clk 0:00:09]} 39. Rxa6 {[%clk 0:00:36]}  Kxd4 {[%clk 0:00:09]} 40. Rb6 {[%clk 0:00:34]}  f5 {[%clk 0:00:07]} 41. a6 {[%clk 0:00:34]}  Ra2+ {[%clk 0:00:08]} 42. Ke1 {[%clk 0:00:32]}  Ke3 {[%clk 0:00:09]} 43. Kd1 {[%clk 0:00:29]}  Kxf3 {[%clk 0:00:08]} 44. b5 {[%clk 0:00:29]}  g5 {[%clk 0:00:07]} 45. Rb7 {[%clk 0:00:26]}  f4 {[%clk 0:00:06]} 46. gxf4 {[%clk 0:00:27]}  gxf4 {[%clk 0:00:07]} 47. a7 {[%clk 0:00:27]}  Ke3 {[%clk 0:00:07]} 48. b6 {[%clk 0:00:26]}  Kd3 {[%clk 0:00:07]} 49. Rd7+ {[%clk 0:00:26]}  Ke3 {[%clk 0:00:08]} 50. Rd8 {[%clk 0:00:21]}  f3 {[%clk 0:00:05]} 51. a8=Q {[%clk 0:00:20]}  f2 {[%clk 0:00:03]} 52. Re8+ {[%clk 0:00:17]}  Kd3 {[%clk 0:00:04]} 53. Qd5+ {[%clk 0:00:14]}  Kc3 {[%clk 0:00:04]} 54. Rc8+ {[%clk 0:00:14]}  Kb4 {[%clk 0:00:04]} 55. Qc4+ {[%clk 0:00:12]}  Ka5 {[%clk 0:00:04]} 56. Ra8+ {[%clk 0:00:10]}  Kxb6 {[%clk 0:00:05]} 57. Rxa2 {[%clk 0:00:10]} 1-0


[Site "https://www.chess.com"]

[Event "Titled Tuesday Blitz June 6 Early 2023"]
[White "Fier, Alexandr"]
[Black "Koutlas, Nikolaos"]
[WhiteFideId "2107139"]
[BlackFideId "25827138"]
[WhiteElo "2610"]
[BlackElo "2215"]
[Result "0-1"]
[Round "1"]
[TimeControl "180+2"]
[Date "2023.06.06"]
[WhiteClock "0:01:00"]
[BlackClock "0:00:03"]
[Board "58"]

1. c4 {[%clk 0:03:00]}  c5 {[%clk 0:02:54]} 2. Nf3 {[%clk 0:03:00]}  Nc6 {[%clk 0:02:51]} 3. Nc3 {[%clk 0:02:59]}  g6 {[%clk 0:02:50]} 4. e3 {[%clk 0:02:58]}  Bg7 {[%clk 0:02:49]} 5. d4 {[%clk 0:02:59]}  d6 {[%clk 0:02:50]} 6. d5 {[%clk 0:02:58]}  Nb8 {[%clk 0:02:50]} 7. e4 {[%clk 0:02:56]}  Nf6 {[%clk 0:02:50]} 8. Bd3 {[%clk 0:02:52]}  O-O {[%clk 0:02:48]} 9. h3 {[%clk 0:02:53]}  b5 {[%clk 0:02:47]} 10. cxb5 {[%clk 0:02:52]}  a6 {[%clk 0:02:47]} 11. O-O {[%clk 0:02:50]}  Qa5 {[%clk 0:02:46]} 12. a4 {[%clk 0:02:48]}  axb5 {[%clk 0:02:45]} 13. Bxb5 {[%clk 0:02:48]}  Ba6 {[%clk 0:02:36]} 14. Bd2 {[%clk 0:02:45]}  Nbd7 {[%clk 0:02:24]} 15. Qc2 {[%clk 0:02:44]}  Rfb8 {[%clk 0:02:21]} 16. Ra3 {[%clk 0:02:44]}  Qb6 {[%clk 0:01:55]} 17. Rfa1 {[%clk 0:02:40]}  c4 {[%clk 0:01:52]} 18. Be3 {[%clk 0:02:38]}  Qa5 {[%clk 0:01:47]} 19. Nd4 {[%clk 0:02:37]}  Ne5 {[%clk 0:01:20]} 20. Nc6 {[%clk 0:02:33]}  Nxc6 {[%clk 0:01:18]} 21. dxc6 {[%clk 0:02:33]}  e6 {[%clk 0:00:41]} 22. Qd2 {[%clk 0:02:27]}  d5 {[%clk 0:00:36]} 23. exd5 {[%clk 0:02:21]}  Nxd5 {[%clk 0:00:25]} 24. Nxd5 {[%clk 0:02:19]}  Qxd2 {[%clk 0:00:23]} 25. Bxd2 {[%clk 0:02:20]}  exd5 {[%clk 0:00:23]} 26. Rb1 {[%clk 0:02:02]}  d4 {[%clk 0:00:14]} 27. Bf4 {[%clk 0:01:59]}  Rc8 {[%clk 0:00:10]} 28. c7 {[%clk 0:01:55]}  d3 {[%clk 0:00:07]} 29. Bd7 {[%clk 0:01:50]}  g5 {[%clk 0:00:06]} 30. Bg3 {[%clk 0:01:50]}  Kf8 {[%clk 0:00:03]} 31. Bd6+ {[%clk 0:01:49]}  Kg8 {[%clk 0:00:03]} 32. Bxc8 {[%clk 0:01:45]}  Rxc8 {[%clk 0:00:03]} 33. a5 {[%clk 0:01:43]}  Re8 {[%clk 0:00:03]} 34. Bb4 {[%clk 0:01:35]}  Rc8 {[%clk 0:00:01]} 35. Bd2 {[%clk 0:01:33]}  Rxc7 {[%clk 0:00:02]} 36. Bxg5 {[%clk 0:01:34]}  Rc5 {[%clk 0:00:02]} 37. Be3 {[%clk 0:01:33]}  Re5 {[%clk 0:00:02]} 38. Rd1 {[%clk 0:01:26]}  Rb5 {[%clk 0:00:02]} 39. Ra2 {[%clk 0:01:26]}  Rxb2 {[%clk 0:00:02]} 40. Rxb2 {[%clk 0:01:25]}  Bxb2 {[%clk 0:00:03]} 41. Rb1 {[%clk 0:01:26]}  c3 {[%clk 0:00:03]} 42. Kh2 {[%clk 0:01:15]}  d2 {[%clk 0:00:03]} 43. Bh6 {[%clk 0:01:13]}  f6 {[%clk 0:00:03]} 44. g4 {[%clk 0:01:11]}  c2 {[%clk 0:00:03]} 45. Rxb2 {[%clk 0:01:11]}  d1=Q {[%clk 0:00:03]} 46. Rb6 {[%clk 0:01:08]}  c1=Q {[%clk 0:00:03]} 47. Bxc1 {[%clk 0:01:08]}  Qxc1 {[%clk 0:00:04]} 48. Rxa6 {[%clk 0:01:08]}  Qc7+ {[%clk 0:00:05]} 49. Kg1 {[%clk 0:01:08]}  Qe5 {[%clk 0:00:04]} 50. Ra8+ {[%clk 0:01:07]}  Kg7 {[%clk 0:00:04]} 51. Ra7+ {[%clk 0:01:07]}  Kg6 {[%clk 0:00:05]} 52. a6 {[%clk 0:01:08]}  Kg5 {[%clk 0:00:04]} 53. Kg2 {[%clk 0:01:04]}  Qe4+ {[%clk 0:00:04]} 54. Kg3 {[%clk 0:01:04]}  Qe5+ {[%clk 0:00:03]} 55. Kg2 {[%clk 0:01:05]}  Qd5+ {[%clk 0:00:04]} 56. Kg3 {[%clk 0:01:05]}  Qd3+ {[%clk 0:00:03]} 57. Kg2 {[%clk 0:01:05]}  Kf4 {[%clk 0:00:03]} 58. Rf7 {[%clk 0:01:00]}  Qd5+ {[%clk 0:00:03]} 0-1


[Site "https://www.chess.com"]

[Event "Titled Tuesday Blitz June 6 Early 2023"]
[White "Tejedor Fuente, Enrique"]
[Black "Herman, Daniel"]
[WhiteFideId "2299100"]
[BlackFideId "30935008"]
[WhiteElo "2496"]
[BlackElo "1897"]
[Result "1-0"]
[Round "1"]
[TimeControl "180+2"]
[Date "2023.06.06"]
[WhiteClock "0:00:48"]
[BlackClock "0:00:10"]
[Board "60"]

1. d4 {[%clk 0:02:55]}  g6 {[%clk 0:03:00]} 2. h4 {[%clk 0:02:54]}  c5 {[%clk 0:02:55]} 3. dxc5 {[%clk 0:02:52]}  Qa5+ {[%clk 0:02:52]} 4. Nd2 {[%clk 0:02:46]}  Qxc5 {[%clk 0:02:51]} 5. h5 {[%clk 0:02:44]}  Bg7 {[%clk 0:02:45]} 6. Ngf3 {[%clk 0:02:40]}  Nc6 {[%clk 0:02:42]} 7. e3 {[%clk 0:02:39]}  gxh5 {[%clk 0:02:36]} 8. a3 {[%clk 0:02:38]}  Nf6 {[%clk 0:02:31]} 9. b4 {[%clk 0:02:38]}  Qb6 {[%clk 0:02:22]} 10. Bb2 {[%clk 0:02:38]}  d5 {[%clk 0:02:19]} 11. c4 {[%clk 0:02:37]}  Be6 {[%clk 0:02:07]} 12. c5 {[%clk 0:02:32]}  Qc7 {[%clk 0:02:02]} 13. Nb3 {[%clk 0:02:32]}  Bg4 {[%clk 0:01:53]} 14. Be2 {[%clk 0:02:31]}  a6 {[%clk 0:01:40]} 15. Rc1 {[%clk 0:02:30]}  e5 {[%clk 0:01:33]} 16. Nh4 {[%clk 0:02:26]}  O-O-O {[%clk 0:01:18]} 17. Bxg4+ {[%clk 0:02:16]}  hxg4 {[%clk 0:01:12]} 18. Nf5 {[%clk 0:02:17]}  Bf8 {[%clk 0:01:04]} 19. Qc2 {[%clk 0:02:09]}  Kb8 {[%clk 0:00:59]} 20. Ng3 {[%clk 0:02:05]}  h5 {[%clk 0:00:52]} 21. Qf5 {[%clk 0:02:03]}  Bg7 {[%clk 0:00:47]} 22. Nxh5 {[%clk 0:01:59]}  Nxh5 {[%clk 0:00:48]} 23. Rxh5 {[%clk 0:01:59]}  Rxh5 {[%clk 0:00:43]} 24. Qxh5 {[%clk 0:02:00]}  Rh8 {[%clk 0:00:44]} 25. Qxg4 {[%clk 0:01:59]}  Bf6 {[%clk 0:00:28]} 26. Qf3 {[%clk 0:01:55]}  Qd8 {[%clk 0:00:22]} 27. Rd1 {[%clk 0:01:48]}  Rh1+ {[%clk 0:00:19]} 28. Ke2 {[%clk 0:01:47]}  Rxd1 {[%clk 0:00:20]} 29. Kxd1 {[%clk 0:01:47]}  d4 {[%clk 0:00:19]} 30. exd4 {[%clk 0:01:46]}  exd4 {[%clk 0:00:20]} 31. Qd3 {[%clk 0:01:41]}  Qd5 {[%clk 0:00:19]} 32. Qg3+ {[%clk 0:01:29]}  Be5 {[%clk 0:00:18]} 33. Qf3 {[%clk 0:01:28]}  Qxf3+ {[%clk 0:00:16]} 34. gxf3 {[%clk 0:01:29]}  Kc8 {[%clk 0:00:17]} 35. Nd2 {[%clk 0:01:29]}  Kd7 {[%clk 0:00:17]} 36. Nc4 {[%clk 0:01:29]}  Bc7 {[%clk 0:00:17]} 37. Ke2 {[%clk 0:01:27]}  Ke6 {[%clk 0:00:17]} 38. Bc1 {[%clk 0:01:23]}  Kd5 {[%clk 0:00:17]} 39. Kd3 {[%clk 0:01:23]}  Ne5+ {[%clk 0:00:12]} 40. Nxe5 {[%clk 0:01:22]}  Bxe5 {[%clk 0:00:13]} 41. f4 {[%clk 0:01:22]}  Bg7 {[%clk 0:00:11]} 42. f5 {[%clk 0:01:22]}  Ke5 {[%clk 0:00:11]} 43. Bb2 {[%clk 0:01:20]}  Kxf5 {[%clk 0:00:11]} 44. Bxd4 {[%clk 0:01:19]}  Bf8 {[%clk 0:00:10]} 45. a4 {[%clk 0:01:15]}  Kf4 {[%clk 0:00:08]} 46. b5 {[%clk 0:01:13]}  axb5 {[%clk 0:00:09]} 47. axb5 {[%clk 0:01:14]}  Kf3 {[%clk 0:00:09]} 48. c6 {[%clk 0:01:12]}  bxc6 {[%clk 0:00:09]} 49. bxc6 {[%clk 0:01:09]}  Bd6 {[%clk 0:00:09]} 50. Bc5 {[%clk 0:01:08]}  Bc7 {[%clk 0:00:08]} 51. Be3 {[%clk 0:01:03]}  f5 {[%clk 0:00:08]} 52. Kc4 {[%clk 0:00:58]}  f4 {[%clk 0:00:08]} 53. Ba7 {[%clk 0:00:57]}  Ke4 {[%clk 0:00:07]} 54. Kc5 {[%clk 0:00:55]}  Ke5 {[%clk 0:00:07]} 55. Bb6 {[%clk 0:00:53]}  Bd6+ {[%clk 0:00:07]} 56. Kb5 {[%clk 0:00:53]}  Ke4 {[%clk 0:00:07]} 57. c7 {[%clk 0:00:51]}  Bxc7 {[%clk 0:00:07]} 58. Bxc7 {[%clk 0:00:51]}  Kf3 {[%clk 0:00:08]} 59. Bb6 {[%clk 0:00:50]}  Ke2 {[%clk 0:00:09]} 60. Kc4 {[%clk 0:00:50]}  Kf3 {[%clk 0:00:08]} 61. Kd3 {[%clk 0:00:49]}  Kg2 {[%clk 0:00:09]} 62. Ke4 {[%clk 0:00:49]}  f3 {[%clk 0:00:10]} 63. Kf4 {[%clk 0:00:48]} 1-0


[Site "https://www.chess.com"]

[Event "Titled Tuesday Blitz June 6 Early 2023"]
[White "Maximov, Dmitry"]
[Black "Kaplan, Avi Harrison"]
[WhiteFideId "14105659"]
[BlackFideId "30934559"]
[WhiteElo "2494"]
[BlackElo "1983"]
[Result "1-0"]
[Round "1"]
[TimeControl "180+2"]
[Date "2023.06.06"]
[WhiteClock "0:02:42"]
[BlackClock "0:01:37"]
[Board "62"]

1. e4 {[%clk 0:03:00]}  g6 {[%clk 0:02:57]} 2. d4 {[%clk 0:03:00]}  Bg7 {[%clk 0:02:58]} 3. Nc3 {[%clk 0:03:00]}  Nc6 {[%clk 0:02:57]} 4. Be3 {[%clk 0:02:58]}  d6 {[%clk 0:02:56]} 5. Qd2 {[%clk 0:02:57]}  Nf6 {[%clk 0:02:54]} 6. f3 {[%clk 0:02:57]}  O-O {[%clk 0:02:52]} 7. O-O-O {[%clk 0:02:53]}  e5 {[%clk 0:02:51]} 8. d5 {[%clk 0:02:53]}  Nb8 {[%clk 0:02:51]} 9. g4 {[%clk 0:02:54]}  h5 {[%clk 0:02:48]} 10. h3 {[%clk 0:02:53]}  a6 {[%clk 0:02:45]} 11. Nge2 {[%clk 0:02:53]}  b5 {[%clk 0:02:29]} 12. Bg5 {[%clk 0:02:53]}  Nbd7 {[%clk 0:02:24]} 13. gxh5 {[%clk 0:02:52]}  gxh5 {[%clk 0:02:21]} 14. Ng3 {[%clk 0:02:52]}  Qe8 {[%clk 0:02:17]} 15. Nf5 {[%clk 0:02:50]}  Bh8 {[%clk 0:01:57]} 16. Rg1 {[%clk 0:02:47]}  Ng4 {[%clk 0:01:42]} 17. hxg4 {[%clk 0:02:45]}  h4 {[%clk 0:01:42]} 18. Bxh4 {[%clk 0:02:43]}  f6 {[%clk 0:01:41]} 19. g5 {[%clk 0:02:43]}  Kf7 {[%clk 0:01:39]} 20. g6+ {[%clk 0:02:42]}  Kg8 {[%clk 0:01:37]} 21. g7 {[%clk 0:02:42]} 1-0


[Site "https://www.chess.com"]

[Event "Titled Tuesday Blitz June 6 Early 2023"]
[White "Yeritsyan, Hayk"]
[Black "Antal, Gergely"]
[WhiteFideId "13307320"]
[BlackFideId "717312"]
[WhiteElo "2431"]
[BlackElo "2471"]
[Result "0-1"]
[Round "1"]
[TimeControl "180+2"]
[Date "2023.06.06"]
[WhiteClock "0:00:06"]
[BlackClock "0:00:32"]
[Board "71"]

1. e4 {[%clk 0:02:52]}  d5 {[%clk 0:03:00]} 2. exd5 {[%clk 0:02:51]}  Nf6 {[%clk 0:03:00]} 3. Nc3 {[%clk 0:02:52]}  Nxd5 {[%clk 0:03:00]} 4. Bc4 {[%clk 0:02:52]}  c6 {[%clk 0:03:00]} 5. Qf3 {[%clk 0:02:49]}  e6 {[%clk 0:03:00]} 6. Nge2 {[%clk 0:02:46]}  Bd6 {[%clk 0:03:00]} 7. d4 {[%clk 0:02:44]}  O-O {[%clk 0:02:59]} 8. O-O {[%clk 0:02:29]}  Nd7 {[%clk 0:02:49]} 9. Ne4 {[%clk 0:02:28]}  Be7 {[%clk 0:02:46]} 10. c3 {[%clk 0:02:21]}  f5 {[%clk 0:02:40]} 11. N4g3 {[%clk 0:02:19]}  Bd6 {[%clk 0:02:24]} 12. Nf4 {[%clk 0:02:13]}  N7f6 {[%clk 0:02:22]} 13. Re1 {[%clk 0:02:11]}  Nxf4 {[%clk 0:02:08]} 14. Bxf4 {[%clk 0:02:12]}  Nd5 {[%clk 0:02:09]} 15. Bxd6 {[%clk 0:02:05]}  Qxd6 {[%clk 0:02:09]} 16. Re5 {[%clk 0:02:02]}  b5 {[%clk 0:02:08]} 17. Bb3 {[%clk 0:01:57]}  a5 {[%clk 0:02:07]} 18. Rae1 {[%clk 0:01:57]}  a4 {[%clk 0:02:06]} 19. Bxd5 {[%clk 0:01:57]}  cxd5 {[%clk 0:02:04]} 20. a3 {[%clk 0:01:56]}  Bd7 {[%clk 0:02:03]} 21. Nh5 {[%clk 0:01:55]}  b4 {[%clk 0:01:50]} 22. cxb4 {[%clk 0:01:34]}  Rac8 {[%clk 0:01:49]} 23. Qg3 {[%clk 0:01:23]}  Rf7 {[%clk 0:01:49]} 24. Nf4 {[%clk 0:01:18]}  Rc2 {[%clk 0:01:34]} 25. Nxe6 {[%clk 0:00:48]}  Bxe6 {[%clk 0:01:33]} 26. Rxe6 {[%clk 0:00:48]}  Qxe6 {[%clk 0:01:22]} 27. f4 {[%clk 0:00:21]}  Re2 {[%clk 0:01:15]} 28. Rc1 {[%clk 0:00:19]}  h6 {[%clk 0:01:13]} 29. h4 {[%clk 0:00:16]}  Re7 {[%clk 0:01:02]} 30. Kh2 {[%clk 0:00:13]}  Kh7 {[%clk 0:00:49]} 31. h5 {[%clk 0:00:13]}  Re3 {[%clk 0:00:47]} 32. Qh4 {[%clk 0:00:11]}  Qf6 {[%clk 0:00:44]} 33. Qxf6 {[%clk 0:00:10]}  gxf6 {[%clk 0:00:44]} 34. Rc5 {[%clk 0:00:08]}  Rb3 {[%clk 0:00:38]} 35. Ra5 {[%clk 0:00:07]}  Rxb2 {[%clk 0:00:38]} 36. Rxa4 {[%clk 0:00:07]}  Ree2 {[%clk 0:00:39]} 37. Ra7+ {[%clk 0:00:05]}  Kg8 {[%clk 0:00:39]} 38. Ra6 {[%clk 0:00:06]}  Rxg2+ {[%clk 0:00:38]} 39. Kh3 {[%clk 0:00:07]}  Rgd2 {[%clk 0:00:31]} 40. Rxf6 {[%clk 0:00:06]}  Rb3+ {[%clk 0:00:31]} 41. Kh4 {[%clk 0:00:06]}  Rh2# {[%clk 0:00:32]} 0-1


[Site "https://www.chess.com"]

[Event "Titled Tuesday Blitz June 6 Early 2023"]
[White "Csonka, Balazs"]
[Black "Mazurkiewicz, Michal"]
[WhiteFideId "742910"]
[BlackFideId "1124943"]
[WhiteElo "2404"]
[BlackElo "2063"]
[Result "1-0"]
[Round "1"]
[TimeControl "180+2"]
[Date "2023.06.06"]
[WhiteClock "0:00:18"]
[BlackClock "0:00:31"]
[Board "74"]

1. e4 {[%clk 0:03:00]}  d6 {[%clk 0:02:59]} 2. d4 {[%clk 0:02:57]}  Nf6 {[%clk 0:03:00]} 3. f3 {[%clk 0:02:58]}  c6 {[%clk 0:02:59]} 4. c4 {[%clk 0:02:53]}  e5 {[%clk 0:02:58]} 5. d5 {[%clk 0:02:50]}  cxd5 {[%clk 0:02:58]} 6. cxd5 {[%clk 0:02:50]}  g6 {[%clk 0:02:58]} 7. Nc3 {[%clk 0:02:50]}  Bg7 {[%clk 0:02:58]} 8. Be3 {[%clk 0:02:50]}  O-O {[%clk 0:02:59]} 9. Bd3 {[%clk 0:02:44]}  Nbd7 {[%clk 0:02:59]} 10. Nge2 {[%clk 0:02:36]}  Nc5 {[%clk 0:02:59]} 11. Bc2 {[%clk 0:02:35]}  a5 {[%clk 0:02:58]} 12. a3 {[%clk 0:02:31]}  Nh5 {[%clk 0:02:55]} 13. O-O {[%clk 0:02:29]}  f5 {[%clk 0:02:52]} 14. b4 {[%clk 0:02:17]}  axb4 {[%clk 0:02:49]} 15. axb4 {[%clk 0:02:18]}  Rxa1 {[%clk 0:02:49]} 16. Qxa1 {[%clk 0:02:19]}  Nd7 {[%clk 0:02:45]} 17. Nb5 {[%clk 0:02:10]}  Ndf6 {[%clk 0:02:43]} 18. Qa5 {[%clk 0:02:01]}  Qe7 {[%clk 0:02:20]} 19. Qc7 {[%clk 0:01:46]}  Qxc7 {[%clk 0:02:19]} 20. Nxc7 {[%clk 0:01:47]}  Bd7 {[%clk 0:02:17]} 21. Ne6 {[%clk 0:01:36]}  Bxe6 {[%clk 0:02:13]} 22. dxe6 {[%clk 0:01:36]}  Re8 {[%clk 0:02:13]} 23. exf5 {[%clk 0:01:29]}  gxf5 {[%clk 0:02:13]} 24. Bxf5 {[%clk 0:01:30]}  Nd5 {[%clk 0:02:13]} 25. Bd2 {[%clk 0:01:25]}  Nhf4 {[%clk 0:02:13]} 26. Nxf4 {[%clk 0:00:57]}  exf4 {[%clk 0:02:14]} 27. Rc1 {[%clk 0:00:48]}  Bd4+ {[%clk 0:01:54]} 28. Kf1 {[%clk 0:00:43]}  Bb6 {[%clk 0:01:54]} 29. Be4 {[%clk 0:00:33]}  Nf6 {[%clk 0:01:10]} 30. Bxb7 {[%clk 0:00:32]}  Rxe6 {[%clk 0:01:08]} 31. Bxf4 {[%clk 0:00:32]}  Re7 {[%clk 0:00:48]} 32. Ba6 {[%clk 0:00:23]}  Ra7 {[%clk 0:00:46]} 33. Be2 {[%clk 0:00:20]}  d5 {[%clk 0:00:43]} 34. b5 {[%clk 0:00:21]}  Ra2 {[%clk 0:00:35]} 35. g4 {[%clk 0:00:19]}  d4 {[%clk 0:00:31]} 36. Bc4+ {[%clk 0:00:18]} 1-0


[Site "https://www.chess.com"]

[Event "Titled Tuesday Blitz June 6 Early 2023"]
[White "Petrosian, Karlen"]
[Black "Ansh M Shah"]
[WhiteFideId "4176146"]
[BlackFideId "25033379"]
[WhiteElo "2345"]
[BlackElo "2084"]
[Result "1/2-1/2"]
[Round "1"]
[TimeControl "180+2"]
[Date "2023.06.06"]
[WhiteClock "0:00:39"]
[BlackClock "0:00:06"]
[Board "76"]

1. e4 {[%clk 0:02:50]}  c6 {[%clk 0:03:00]} 2. Nf3 {[%clk 0:02:47]}  d5 {[%clk 0:03:01]} 3. Nc3 {[%clk 0:02:47]}  Bg4 {[%clk 0:03:00]} 4. h3 {[%clk 0:02:46]}  Bxf3 {[%clk 0:03:00]} 5. Qxf3 {[%clk 0:02:47]}  e6 {[%clk 0:03:01]} 6. Be2 {[%clk 0:02:46]}  Bc5 {[%clk 0:03:00]} 7. O-O {[%clk 0:02:45]}  Nd7 {[%clk 0:03:00]} 8. Qg3 {[%clk 0:02:44]}  Bd4 {[%clk 0:02:59]} 9. d3 {[%clk 0:02:39]}  Ne7 {[%clk 0:02:58]} 10. Nd1 {[%clk 0:02:36]}  O-O {[%clk 0:02:57]} 11. c3 {[%clk 0:02:31]}  Bb6 {[%clk 0:02:56]} 12. Ne3 {[%clk 0:02:17]}  f5 {[%clk 0:02:50]} 13. exf5 {[%clk 0:02:14]}  exf5 {[%clk 0:02:49]} 14. Nc2 {[%clk 0:02:12]}  Bc7 {[%clk 0:02:32]} 15. Bf4 {[%clk 0:02:07]}  Bxf4 {[%clk 0:02:29]} 16. Qxf4 {[%clk 0:02:08]}  Ng6 {[%clk 0:02:29]} 17. Qd2 {[%clk 0:02:04]}  Qf6 {[%clk 0:02:20]} 18. d4 {[%clk 0:02:02]}  Rae8 {[%clk 0:02:20]} 19. Rae1 {[%clk 0:02:01]}  Nh4 {[%clk 0:02:18]} 20. g3 {[%clk 0:01:50]}  Ng6 {[%clk 0:01:57]} 21. Bf3 {[%clk 0:01:47]}  f4 {[%clk 0:01:47]} 22. Rxe8 {[%clk 0:01:46]}  Rxe8 {[%clk 0:01:46]} 23. Bg4 {[%clk 0:01:46]}  Ndf8 {[%clk 0:01:40]} 24. Re1 {[%clk 0:01:47]}  Rxe1+ {[%clk 0:01:39]} 25. Qxe1 {[%clk 0:01:48]}  fxg3 {[%clk 0:01:39]} 26. fxg3 {[%clk 0:01:49]}  Ne7 {[%clk 0:01:33]} 27. Nb4 {[%clk 0:01:44]}  g6 {[%clk 0:01:26]} 28. h4 {[%clk 0:01:42]}  h5 {[%clk 0:01:24]} 29. Bh3 {[%clk 0:01:42]}  Nf5 {[%clk 0:01:23]} 30. Nd3 {[%clk 0:01:37]}  Nd6 {[%clk 0:00:56]} 31. Qe5 {[%clk 0:01:24]}  Qxe5 {[%clk 0:00:55]} 32. Nxe5 {[%clk 0:01:24]}  Kg7 {[%clk 0:00:50]} 33. Kf2 {[%clk 0:01:22]}  Kf6 {[%clk 0:00:49]} 34. Kf3 {[%clk 0:01:21]}  g5 {[%clk 0:00:21]} 35. hxg5+ {[%clk 0:01:19]}  Kxg5 {[%clk 0:00:21]} 36. a4 {[%clk 0:01:13]}  Ng6 {[%clk 0:00:21]} 37. Nd7 {[%clk 0:01:09]}  h4 {[%clk 0:00:20]} 38. gxh4+ {[%clk 0:01:07]}  Nxh4+ {[%clk 0:00:21]} 39. Ke2 {[%clk 0:01:07]}  Kf4 {[%clk 0:00:20]} 40. Nc5 {[%clk 0:01:06]}  Nhf5 {[%clk 0:00:14]} 41. Ne6+ {[%clk 0:01:03]}  Kg3 {[%clk 0:00:12]} 42. Bf1 {[%clk 0:00:59]}  Ne7 {[%clk 0:00:10]} 43. Kd3 {[%clk 0:00:57]}  Ng6 {[%clk 0:00:10]} 44. Nc5 {[%clk 0:00:55]}  Nf4+ {[%clk 0:00:10]} 45. Kc2 {[%clk 0:00:55]}  Kf2 {[%clk 0:00:10]} 46. Bd3 {[%clk 0:00:54]}  Nxd3 {[%clk 0:00:09]} 47. Kxd3 {[%clk 0:00:55]}  Ke1 {[%clk 0:00:09]} 48. a5 {[%clk 0:00:54]}  Kd1 {[%clk 0:00:09]} 49. a6 {[%clk 0:00:54]}  bxa6 {[%clk 0:00:09]} 50. Nxa6 {[%clk 0:00:54]}  Nc8 {[%clk 0:00:09]} 51. b4 {[%clk 0:00:51]}  Kc1 {[%clk 0:00:09]} 52. Nb8 {[%clk 0:00:51]}  Ne7 {[%clk 0:00:09]} 53. Nd7 {[%clk 0:00:51]}  Kb2 {[%clk 0:00:09]} 54. Nc5 {[%clk 0:00:52]}  Ka3 {[%clk 0:00:08]} 55. Kc2 {[%clk 0:00:51]}  Nc8 {[%clk 0:00:07]} 56. Nb3 {[%clk 0:00:51]}  Ka4 {[%clk 0:00:06]} 57. Na5 {[%clk 0:00:50]}  Kb5 {[%clk 0:00:06]} 58. Kb3 {[%clk 0:00:50]}  Nd6 {[%clk 0:00:06]} 59. Kc2 {[%clk 0:00:47]}  Nc4 {[%clk 0:00:06]} 60. Nb7 {[%clk 0:00:45]}  a5 {[%clk 0:00:04]} 61. bxa5 {[%clk 0:00:41]}  Nxa5 {[%clk 0:00:05]} 62. Nd6+ {[%clk 0:00:41]}  Kb6 {[%clk 0:00:05]} 63. Kd3 {[%clk 0:00:42]}  Nb7 {[%clk 0:00:05]} 64. Ne8 {[%clk 0:00:41]}  Na5 {[%clk 0:00:05]} 65. Nf6 {[%clk 0:00:40]}  Nc4 {[%clk 0:00:06]} 66. Nd7+ {[%clk 0:00:40]}  Kb5 {[%clk 0:00:06]} 67. Nc5 {[%clk 0:00:41]}  Kb6 {[%clk 0:00:06]} 68. Kc2 {[%clk 0:00:39]}  Kb5 {[%clk 0:00:06]} 69. Kb3 {[%clk 0:00:40]}  Na5+ {[%clk 0:00:07]} 70. Kb2 {[%clk 0:00:40]}  Kc4 {[%clk 0:00:06]} 71. Kc2 {[%clk 0:00:41]}  Kb5 {[%clk 0:00:06]} 72. Ne6 {[%clk 0:00:39]}  Nc4 {[%clk 0:00:06]} 73. Nc7+ {[%clk 0:00:38]}  Kb6 {[%clk 0:00:06]} 74. Ne8 {[%clk 0:00:39]}  Kb5 {[%clk 0:00:05]} 75. Nf6 {[%clk 0:00:38]}  Kb6 {[%clk 0:00:05]} 76. Nd7+ {[%clk 0:00:38]}  Kb5 {[%clk 0:00:05]} 77. Nc5 {[%clk 0:00:39]}  Kb6 {[%clk 0:00:06]} 78. Nd3 {[%clk 0:00:39]}  Kb5 {[%clk 0:00:06]} 1/2-1/2


[Site "https://www.chess.com"]